[Event "Late-Titled-Tuesday-Blitz-February-13-2024"]
[Site "Chess.com"]
[Date "2024.02.13"]
[Round "8"]
[White "Heinza9"]
[Black "BeardedNM"]
[Result "1-0"]
[WhiteElo "2294"]
[BlackElo "2147"]
[TimeControl "180+1"]
[EndTime "15:29:10 PST"]
[Termination "Heinza9 won on time"]

1. e4 {[%clk 0:03:00.9]} 1... e6 {[%clk 0:02:58.3]} 2. c4 {[%clk 0:03:00.5]}
2... d5 {[%clk 0:02:58.4]} 3. cxd5 {[%clk 0:03:00.8]} 3... exd5 {[%clk
0:02:59.3]} 4. exd5 {[%clk 0:03:01.2]} 4... Nf6 {[%clk 0:02:59.8]} 5. Bb5+
{[%clk 0:03:01.1]} 5... Nbd7 {[%clk 0:02:57.1]} 6. Nc3 {[%clk 0:03:00.3]} 6...
a6 {[%clk 0:02:54.5]} 7. Bc4 {[%clk 0:02:53.3]} 7... Nb6 {[%clk 0:02:53.8]} 8.
Bb3 {[%clk 0:02:53.6]} 8... Nfxd5 {[%clk 0:02:52.7]} 9. Nge2 {[%clk 0:02:52.8]}
9... Be7 {[%clk 0:02:52.4]} 10. O-O {[%clk 0:02:52.8]} 10... O-O {[%clk
0:02:50.7]} 11. d4 {[%clk 0:02:53.1]} 11... Bf6 {[%clk 0:02:44.9]} 12. h3 {[%clk
0:02:52.3]} 12... Be6 {[%clk 0:02:37]} 13. Ng3 {[%clk 0:02:42.7]} 13... Re8
{[%clk 0:02:21.1]} 14. Nge4 {[%clk 0:02:38.9]} 14... Nxc3 {[%clk 0:02:20.2]} 15.
Nxf6+ {[%clk 0:02:36.3]} 15... Qxf6 {[%clk 0:02:18]} 16. bxc3 {[%clk 0:02:36.5]}
16... c5 {[%clk 0:02:03.9]} 17. Be3 {[%clk 0:02:32.5]} 17... c4 {[%clk
0:01:50.5]} 18. Bc2 {[%clk 0:02:29.7]} 18... Nd5 {[%clk 0:01:50.5]} 19. Qd2
{[%clk 0:02:22.1]} 19... Bf5 {[%clk 0:01:44.8]} 20. Bg5 {[%clk 0:02:19.8]} 20...
Qg6 {[%clk 0:01:43.8]} 21. Bxf5 {[%clk 0:02:10.3]} 21... Qxf5 {[%clk 0:01:44.7]}
22. Rae1 {[%clk 0:02:06.7]} 22... b5 {[%clk 0:01:33.9]} 23. Bh4 {[%clk
0:02:05.6]} 23... Nf4 {[%clk 0:01:23.3]} 24. Bg3 {[%clk 0:02:03.2]} 24... Nd3
{[%clk 0:01:13.3]} 25. Re3 {[%clk 0:02:00]} 25... h5 {[%clk 0:01:03.7]} 26. h4
{[%clk 0:01:57.4]} 26... Re6 {[%clk 0:00:52.6]} 27. Rxe6 {[%clk 0:01:52.9]}
27... Qxe6 {[%clk 0:00:53.5]} 28. Qg5 {[%clk 0:01:51]} 28... g6 {[%clk
0:00:49.1]} 29. f4 {[%clk 0:01:44.2]} 29... Qg4 {[%clk 0:00:41.8]} 30. Qxg4
{[%clk 0:01:41.6]} 30... hxg4 {[%clk 0:00:40.9]} 31. f5 {[%clk 0:01:42]} 31...
Re8 {[%clk 0:00:36.4]} 32. fxg6 {[%clk 0:01:41.2]} 32... fxg6 {[%clk 0:00:37.3]}
33. Rf6 {[%clk 0:01:40.1]} 33... Kg7 {[%clk 0:00:32.8]} 34. Rxa6 {[%clk
0:01:38.6]} 34... Re2 {[%clk 0:00:33]} 35. d5 {[%clk 0:01:27.1]} 35... Rd2
{[%clk 0:00:21.7]} 36. d6 {[%clk 0:01:23.4]} 36... Nc5 {[%clk 0:00:20.9]} 37.
Ra7+ {[%clk 0:01:22.1]} 37... Kf6 {[%clk 0:00:20.5]} 38. Bf2 {[%clk 0:01:09.9]}
38... Ne4 {[%clk 0:00:18.4]} 39. Bd4+ {[%clk 0:01:09.4]} 39... Rxd4 {[%clk
0:00:14.3]} 40. cxd4 {[%clk 0:01:08.7]} 40... Nxd6 {[%clk 0:00:15.2]} 41. Ra6
{[%clk 0:01:07.4]} 41... Ke6 {[%clk 0:00:14.4]} 42. Kf2 {[%clk 0:01:05]} 42...
Kd5 {[%clk 0:00:14]} 43. Ke3 {[%clk 0:01:04.2]} 43... b4 {[%clk 0:00:14.3]} 44.
Ra5+ {[%clk 0:01:03]} 44... Ke6 {[%clk 0:00:14.2]} 45. d5+ {[%clk 0:01:03.1]}
45... Ke5 {[%clk 0:00:14.1]} 46. g3 {[%clk 0:01:02.2]} 46... b3 {[%clk
0:00:12.5]} 47. axb3 {[%clk 0:01:01.6]} 47... cxb3 {[%clk 0:00:13.4]} 48. Kd3
{[%clk 0:01:01.3]} 48... Nf5 {[%clk 0:00:10.8]} 49. Kc3 {[%clk 0:00:59.3]} 49...
Nxg3 {[%clk 0:00:11]} 50. Kxb3 {[%clk 0:00:58.9]} 50... Nf5 {[%clk 0:00:11.2]}
51. Kc4 {[%clk 0:00:57.2]} 51... g3 {[%clk 0:00:10.8]} 52. Ra2 {[%clk
0:00:51.4]} 52... g2 {[%clk 0:00:08.7]} 53. Re2+ {[%clk 0:00:51.3]} 53... Kf4
{[%clk 0:00:08.3]} 54. Re1 {[%clk 0:00:50.1]} 54... Ne3+ {[%clk 0:00:06]} 55.
Kd4 {[%clk 0:00:47.7]} 55... Nf1 {[%clk 0:00:06.3]} 56. Re4+ {[%clk 0:00:46.3]}
56... Kf5 {[%clk 0:00:06.2]} 57. Re5+ {[%clk 0:00:45]} 57... Kf4 {[%clk
0:00:06]} 58. Rg5 {[%clk 0:00:45]} 58... Kf3 {[%clk 0:00:05.4]} 59. d6 {[%clk
0:00:44.6]} 59... Ng3 {[%clk 0:00:05.3]} 60. d7 {[%clk 0:00:43.2]} 60... g1=Q+
{[%clk 0:00:05.6]} 61. Ke5 {[%clk 0:00:43]} 61... Qe1+ {[%clk 0:00:05.5]} 62.
Kd6 {[%clk 0:00:42.6]} 62... Qd2+ {[%clk 0:00:05.5]} 63. Kc7 {[%clk 0:00:42]}
63... Ne4 {[%clk 0:00:04.8]} 64. Rxg6 {[%clk 0:00:34.5]} 64... Qc3+ {[%clk
0:00:04.3]} 65. Kd8 {[%clk 0:00:31]} 65... Qh8+ {[%clk 0:00:03.1]} 66. Kc7
{[%clk 0:00:30.3]} 66... Qc3+ {[%clk 0:00:02.9]} 67. Rc6 {[%clk 0:00:30.1]}
67... Qe5+ {[%clk 0:00:02.6]} 68. Kc8 {[%clk 0:00:29.7]} 1-0

[Event "Late-Titled-Tuesday-Blitz-February-13-2024"]
[Site "Chess.com"]
[Date "2024.02.13"]
[Round "8"]
[White "Supelyel"]
[Black "WilsonPalencia21"]
[Result "1-0"]
[WhiteElo "2448"]
[BlackElo "2528"]
[TimeControl "180+1"]
[EndTime "15:29:11 PST"]
[Termination "Supelyel won on time"]

1. c4 {[%clk 0:03:00.9]} 1... c5 {[%clk 0:02:58.4]} 2. g3 {[%clk 0:02:58.6]}
2... g6 {[%clk 0:02:58.7]} 3. Bg2 {[%clk 0:02:57.9]} 3... Bg7 {[%clk 0:02:59.6]}
4. Nc3 {[%clk 0:02:57.2]} 4... Nc6 {[%clk 0:03:00.1]} 5. Nf3 {[%clk 0:02:57.7]}
5... Nf6 {[%clk 0:03:00.1]} 6. O-O {[%clk 0:02:57.6]} 6... O-O {[%clk
0:03:00.3]} 7. d3 {[%clk 0:02:57.6]} 7... d5 {[%clk 0:03:00.3]} 8. Bg5 {[%clk
0:02:55.8]} 8... d4 {[%clk 0:03:00.3]} 9. Bxf6 {[%clk 0:02:43.1]} 9... exf6
{[%clk 0:03:00]} 10. Na4 {[%clk 0:02:15.7]} 10... Qe7 {[%clk 0:02:59.2]} 11. Re1
{[%clk 0:02:11]} 11... Bg4 {[%clk 0:02:50.1]} 12. h3 {[%clk 0:02:08.4]} 12...
Be6 {[%clk 0:02:46.3]} 13. a3 {[%clk 0:02:04.1]} 13... Rad8 {[%clk 0:02:45.6]}
14. Qd2 {[%clk 0:01:45.4]} 14... a6 {[%clk 0:02:26.2]} 15. Rac1 {[%clk 0:01:37]}
15... h5 {[%clk 0:02:15.6]} 16. b3 {[%clk 0:01:17.7]} 16... Kh7 {[%clk
0:02:14.1]} 17. Qb2 {[%clk 0:01:18.3]} 17... Bh6 {[%clk 0:02:08.1]} 18. Rc2
{[%clk 0:01:18.1]} 18... g5 {[%clk 0:01:58.6]} 19. Rb1 {[%clk 0:01:05.8]} 19...
a5 {[%clk 0:01:57.8]} 20. Nb6 {[%clk 0:01:00.9]} 20... Rg8 {[%clk 0:01:41.8]}
21. Nd2 {[%clk 0:00:39.6]} 21... Ne5 {[%clk 0:01:30.6]} 22. Nd5 {[%clk
0:00:29.6]} 22... Bxd5 {[%clk 0:01:30.4]} 23. cxd5 {[%clk 0:00:29.8]} 23... f5
{[%clk 0:01:23.4]} 24. b4 {[%clk 0:00:29.9]} 24... cxb4 {[%clk 0:01:22.4]} 25.
axb4 {[%clk 0:00:30.8]} 25... f4 {[%clk 0:01:18.7]} 26. Qxd4 {[%clk 0:00:23.9]}
26... axb4 {[%clk 0:01:14.5]} 27. Ne4 {[%clk 0:00:18.4]} 27... f5 {[%clk
0:01:06.7]} 28. d6 {[%clk 0:00:18]} 28... Qe6 {[%clk 0:01:01.6]} 29. Rc7+ {[%clk
0:00:17.7]} 29... Kg6 {[%clk 0:00:55.1]} 30. Rxb4 {[%clk 0:00:16.8]} 30... f3
{[%clk 0:00:48.5]} 31. exf3 {[%clk 0:00:16.1]} 31... fxe4 {[%clk 0:00:48.6]} 32.
fxe4 {[%clk 0:00:16.2]} 32... g4 {[%clk 0:00:47]} 33. Rbxb7 {[%clk 0:00:14.8]}
33... Rxd6 {[%clk 0:00:44.3]} 34. Qb2 {[%clk 0:00:12.2]} 34... Rxd3 {[%clk
0:00:43]} 35. Qb1 {[%clk 0:00:12.4]} 35... Rgd8 {[%clk 0:00:41.8]} 36. Rc1
{[%clk 0:00:11.4]} 36... R8d6 {[%clk 0:00:39]} 37. Rb8 {[%clk 0:00:10.9]} 37...
Qd7 {[%clk 0:00:38.1]} 38. Bf1 {[%clk 0:00:10.9]} 38... Rd1 {[%clk 0:00:36.2]}
39. Rxd1 {[%clk 0:00:11.3]} 39... Rxd1 {[%clk 0:00:36.1]} 40. Qb3 {[%clk
0:00:11.7]} 40... Nf3+ {[%clk 0:00:26.7]} 41. Kg2 {[%clk 0:00:10.6]} 41... Rxf1
{[%clk 0:00:26.3]} 42. Rb6+ {[%clk 0:00:10]} 42... Kh7 {[%clk 0:00:24.7]} 43.
Rb7 {[%clk 0:00:09.8]} 43... Rd1 {[%clk 0:00:21.5]} 44. Rxd7+ {[%clk 0:00:07.4]}
44... Rxd7 {[%clk 0:00:22.4]} 45. hxg4 {[%clk 0:00:05.9]} 45... hxg4 {[%clk
0:00:22.4]} 46. Qe6 {[%clk 0:00:06.3]} 46... Rg7 {[%clk 0:00:22.4]} 47. Qf5+
{[%clk 0:00:06.4]} 47... Kg8 {[%clk 0:00:22.1]} 48. e5 {[%clk 0:00:07.3]} 48...
Ne1+ {[%clk 0:00:11.8]} 49. Kf1 {[%clk 0:00:07.3]} 49... Nf3 {[%clk 0:00:12.4]}
50. Qe6+ {[%clk 0:00:07.8]} 50... Kh7 {[%clk 0:00:12.3]} 51. Qf5+ {[%clk
0:00:08.5]} 51... Rg6 {[%clk 0:00:12.8]} 52. e6 {[%clk 0:00:08.9]} 52... Bg5
{[%clk 0:00:05.8]} 53. Qf7+ {[%clk 0:00:07.4]} 53... Kh6 {[%clk 0:00:05.7]} 54.
Qf5 {[%clk 0:00:07.9]} 54... Nd4 {[%clk 0:00:04.9]} 55. Qf8+ {[%clk 0:00:05.6]}
55... Kh7 {[%clk 0:00:04.4]} 56. e7 {[%clk 0:00:06.2]} 56... Bxe7 {[%clk
0:00:04.3]} 57. Qxe7+ {[%clk 0:00:07.1]} 57... Kh6 {[%clk 0:00:04.1]} 58. Qe3+
{[%clk 0:00:07.2]} 58... Kh5 {[%clk 0:00:03.6]} 59. Qxd4 {[%clk 0:00:08]} 59...
Rg5 {[%clk 0:00:03.8]} 60. Qh8+ {[%clk 0:00:05.2]} 1-0

[Event "Late-Titled-Tuesday-Blitz-February-13-2024"]
[Site "Chess.com"]
[Date "2024.02.13"]
[Round "8"]
[White "Goryachkina"]
[Black "verrbaa"]
[Result "1-0"]
[WhiteElo "2702"]
[BlackElo "2508"]
[TimeControl "180+1"]
[EndTime "15:29:13 PST"]
[Termination "Goryachkina won on time"]

1. e4 {[%clk 0:02:59.7]} 1... c5 {[%clk 0:02:55.8]} 2. Nf3 {[%clk 0:02:59.7]}
2... e6 {[%clk 0:02:56.3]} 3. g3 {[%clk 0:02:57.5]} 3... Nc6 {[%clk 0:02:55.8]}
4. Bg2 {[%clk 0:02:57.4]} 4... Nf6 {[%clk 0:02:54.9]} 5. Nc3 {[%clk 0:02:56.5]}
5... d6 {[%clk 0:02:49.1]} 6. d4 {[%clk 0:02:54.8]} 6... cxd4 {[%clk 0:02:48.9]}
7. Nxd4 {[%clk 0:02:54.9]} 7... Bd7 {[%clk 0:02:49.5]} 8. O-O {[%clk 0:02:53.6]}
8... a6 {[%clk 0:02:45.3]} 9. Re1 {[%clk 0:02:52.2]} 9... Be7 {[%clk 0:02:42.5]}
10. a4 {[%clk 0:02:51.7]} 10... O-O {[%clk 0:02:41.1]} 11. Nxc6 {[%clk
0:02:51.7]} 11... Bxc6 {[%clk 0:02:41.2]} 12. a5 {[%clk 0:02:51.8]} 12... Qc7
{[%clk 0:02:32.6]} 13. Be3 {[%clk 0:02:51.3]} 13... Nd7 {[%clk 0:02:31.1]} 14.
Qe2 {[%clk 0:02:34.8]} 14... Rac8 {[%clk 0:02:28.9]} 15. Bd4 {[%clk 0:02:29.7]}
15... Bf6 {[%clk 0:02:24.1]} 16. Bxf6 {[%clk 0:02:26.1]} 16... Nxf6 {[%clk
0:02:23.9]} 17. h3 {[%clk 0:02:08]} 17... h6 {[%clk 0:02:23.3]} 18. Red1 {[%clk
0:02:02.9]} 18... Rfd8 {[%clk 0:02:21.5]} 19. Qe3 {[%clk 0:02:02]} 19... e5
{[%clk 0:01:58.8]} 20. Rd2 {[%clk 0:01:53.9]} 20... Rd7 {[%clk 0:01:28.9]} 21.
Ra3 {[%clk 0:01:49.5]} 21... Rcd8 {[%clk 0:01:21.5]} 22. Nd5 {[%clk 0:01:42.5]}
22... Bxd5 {[%clk 0:01:18.7]} 23. exd5 {[%clk 0:01:42.8]} 23... Re7 {[%clk
0:00:59.3]} 24. b4 {[%clk 0:01:33.2]} 24... e4 {[%clk 0:00:56.4]} 25. Rc3 {[%clk
0:01:28]} 25... Qd7 {[%clk 0:00:56.7]} 26. Qb6 {[%clk 0:01:08.6]} 26... Rde8
{[%clk 0:00:54.6]} 27. Re3 {[%clk 0:00:58.1]} 27... Re5 {[%clk 0:00:52.1]} 28.
c4 {[%clk 0:00:56.1]} 28... h5 {[%clk 0:00:43.3]} 29. Qd4 {[%clk 0:00:30.2]}
29... h4 {[%clk 0:00:41.1]} 30. g4 {[%clk 0:00:30]} 30... Qa4 {[%clk 0:00:34.2]}
31. Qc3 {[%clk 0:00:27.4]} 31... Rc8 {[%clk 0:00:31.5]} 32. Re1 {[%clk
0:00:15.4]} 32... Nxd5 {[%clk 0:00:23.1]} 33. Qd4 {[%clk 0:00:15.3]} 33... Nf6
{[%clk 0:00:14.5]} 34. Qxd6 {[%clk 0:00:15.2]} 34... Re6 {[%clk 0:00:15]} 35.
Qf4 {[%clk 0:00:12.7]} 35... Qxb4 {[%clk 0:00:15.3]} 36. Red1 {[%clk 0:00:07]}
36... Qxc4 {[%clk 0:00:12.6]} 37. g5 {[%clk 0:00:07.1]} 37... Nh5 {[%clk
0:00:10.1]} 38. Qxh4 {[%clk 0:00:07]} 38... g6 {[%clk 0:00:10.6]} 39. Qg4 {[%clk
0:00:05.6]} 39... Ree8 {[%clk 0:00:09.5]} 40. Rd7 {[%clk 0:00:04.8]} 40... Qc6
{[%clk 0:00:05.3]} 41. R7d6 {[%clk 0:00:04]} 41... Qb5 {[%clk 0:00:04.8]} 42.
Rd7 {[%clk 0:00:04.5]} 42... Qxa5 {[%clk 0:00:04.7]} 43. Rxb7 {[%clk 0:00:04.7]}
43... Qa4 {[%clk 0:00:03.6]} 44. Rbd7 {[%clk 0:00:04.8]} 44... Qb5 {[%clk
0:00:03]} 45. h4 {[%clk 0:00:05.1]} 45... a5 {[%clk 0:00:03]} 46. R7d5 {[%clk
0:00:05.5]} 46... Qb6 {[%clk 0:00:02.9]} 47. Bxe4 {[%clk 0:00:04.8]} 47... a4
{[%clk 0:00:02.6]} 48. Rd7 {[%clk 0:00:04.4]} 48... Qb4 {[%clk 0:00:02.5]} 49.
Rxf7 {[%clk 0:00:03.8]} 49... Qxe4 {[%clk 0:00:02.3]} 50. Qd7 {[%clk 0:00:03.3]}
50... Qf4 {[%clk 0:00:01.2]} 51. Rxf4 {[%clk 0:00:03.3]} 51... a3 {[%clk
0:00:01.2]} 52. Qd5+ {[%clk 0:00:03.5]} 52... Kh8 {[%clk 0:00:01.2]} 53. Ra4
{[%clk 0:00:03.9]} 1-0

[Event "Late-Titled-Tuesday-Blitz-February-13-2024"]
[Site "Chess.com"]
[Date "2024.02.13"]
[Round "8"]
[White "Szparu"]
[Black "vi_pranav"]
[Result "1-0"]
[WhiteElo "2795"]
[BlackElo "3019"]
[TimeControl "180+1"]
[EndTime "15:29:14 PST"]
[Termination "Szparu won on time"]

1. e4 {[%clk 0:03:00.9]} 1... e5 {[%clk 0:02:59]} 2. Nf3 {[%clk 0:03:01.1]} 2...
Nc6 {[%clk 0:02:59.5]} 3. Bb5 {[%clk 0:03:01.8]} 3... a6 {[%clk 0:02:59.9]} 4.
Ba4 {[%clk 0:03:02.4]} 4... d6 {[%clk 0:03:00.5]} 5. O-O {[%clk 0:03:01.2]} 5...
Bd7 {[%clk 0:03:00.9]} 6. c3 {[%clk 0:03:01.1]} 6... g5 {[%clk 0:03:01.5]} 7. d4
{[%clk 0:02:58.6]} 7... g4 {[%clk 0:03:01.9]} 8. Ne1 {[%clk 0:02:57.9]} 8... h5
{[%clk 0:03:02.2]} 9. f4 {[%clk 0:02:54.8]} 9... exd4 {[%clk 0:03:02.3]} 10.
cxd4 {[%clk 0:02:50.9]} 10... Bg7 {[%clk 0:03:02.6]} 11. d5 {[%clk 0:02:39]}
11... Nce7 {[%clk 0:02:54.6]} 12. Nc3 {[%clk 0:02:38.8]} 12... Ng6 {[%clk
0:02:52.2]} 13. f5 {[%clk 0:02:19.6]} 13... Ne5 {[%clk 0:02:49.9]} 14. Bf4
{[%clk 0:02:19.2]} 14... Bxa4 {[%clk 0:02:45]} 15. Qxa4+ {[%clk 0:02:18.1]}
15... b5 {[%clk 0:02:41.2]} 16. Qc2 {[%clk 0:02:13.9]} 16... Kf8 {[%clk
0:02:37.3]} 17. Nd3 {[%clk 0:02:12.2]} 17... Nxd3 {[%clk 0:02:24.1]} 18. Qxd3
{[%clk 0:02:12.3]} 18... Qf6 {[%clk 0:02:09.6]} 19. Rad1 {[%clk 0:01:18.7]}
19... Bh6 {[%clk 0:02:03.6]} 20. Kh1 {[%clk 0:00:57.4]} 20... Bxf4 {[%clk
0:02:01.6]} 21. Rxf4 {[%clk 0:00:58.3]} 21... Qe5 {[%clk 0:02:02.3]} 22. Rff1
{[%clk 0:00:58]} 22... Nf6 {[%clk 0:02:02.8]} 23. Rde1 {[%clk 0:00:53]} 23... h4
{[%clk 0:02:02.5]} 24. a3 {[%clk 0:00:47.1]} 24... h3 {[%clk 0:01:51.7]} 25. g3
{[%clk 0:00:46.3]} 25... Rb8 {[%clk 0:01:51.6]} 26. b4 {[%clk 0:00:45.7]} 26...
Kg7 {[%clk 0:01:44]} 27. Rf4 {[%clk 0:00:45.1]} 27... Rhe8 {[%clk 0:01:41.8]}
28. Nd1 {[%clk 0:00:35.6]} 28... Kf8 {[%clk 0:01:35.9]} 29. Kg1 {[%clk
0:00:21.5]} 29... Qa1 {[%clk 0:01:06.1]} 30. Rff1 {[%clk 0:00:18.9]} 30... Qa2
{[%clk 0:01:01.4]} 31. Re2 {[%clk 0:00:18.8]} 31... Qc4 {[%clk 0:01:01.3]} 32.
Qxc4 {[%clk 0:00:16.2]} 32... bxc4 {[%clk 0:01:02.2]} 33. Rfe1 {[%clk
0:00:09.7]} 33... a5 {[%clk 0:00:59.8]} 34. bxa5 {[%clk 0:00:07.2]} 34... Rb3
{[%clk 0:00:56.3]} 35. Rc2 {[%clk 0:00:05.3]} 35... Rxa3 {[%clk 0:00:49.5]} 36.
Rxc4 {[%clk 0:00:05.3]} 36... Ra1 {[%clk 0:00:49.3]} 37. Kf1 {[%clk 0:00:03.7]}
37... Rxa5 {[%clk 0:00:43.6]} 38. Nf2 {[%clk 0:00:03.8]} 38... Re7 {[%clk
0:00:42.3]} 39. Rec1 {[%clk 0:00:03.4]} 39... Ra2 {[%clk 0:00:33.4]} 40. Rxc7
{[%clk 0:00:02.9]} 40... Nxe4 {[%clk 0:00:33.2]} 41. Nxe4 {[%clk 0:00:01.7]}
41... Rxe4 {[%clk 0:00:33.2]} 42. R1c2 {[%clk 0:00:02.2]} 42... Ra1+ {[%clk
0:00:32.3]} 43. Rc1 {[%clk 0:00:02.8]} 43... Rxc1+ {[%clk 0:00:23.9]} 44. Rxc1
{[%clk 0:00:03.3]} 44... Re5 {[%clk 0:00:15.9]} 45. Rc4 {[%clk 0:00:02.8]} 45...
Rxf5+ {[%clk 0:00:14.7]} 46. Ke2 {[%clk 0:00:03.4]} 46... Rg5 {[%clk 0:00:14]}
47. Rf4 {[%clk 0:00:02.8]} 47... Kg7 {[%clk 0:00:13.5]} 48. Ke3 {[%clk
0:00:03.1]} 48... Kg6 {[%clk 0:00:12]} 49. Kd4 {[%clk 0:00:03.2]} 49... f5
{[%clk 0:00:06.2]} 50. Rf2 {[%clk 0:00:03]} 50... Kf7 {[%clk 0:00:06.6]} 51. Ke3
{[%clk 0:00:01.9]} 51... Kf6 {[%clk 0:00:01.9]} 52. Kf4 {[%clk 0:00:02.4]} 52...
Rg8 {[%clk 0:00:01.7]} 53. Re2 {[%clk 0:00:03.1]} 1-0

[Event "Late-Titled-Tuesday-Blitz-February-13-2024"]
[Site "Chess.com"]
[Date "2024.02.13"]
[Round "8"]
[White "wanyaland"]
[Black "FredddieCroderg"]
[Result "1-0"]
[WhiteElo "2484"]
[BlackElo "2275"]
[TimeControl "180+1"]
[EndTime "15:29:15 PST"]
[Termination "wanyaland won by resignation"]

1. d4 {[%clk 0:02:54.6]} 1... d5 {[%clk 0:02:59.3]} 2. c4 {[%clk 0:02:54.2]}
2... e6 {[%clk 0:02:59.2]} 3. Nc3 {[%clk 0:02:54.5]} 3... Nf6 {[%clk 0:02:58.8]}
4. Nf3 {[%clk 0:02:55.4]} 4... c6 {[%clk 0:02:54.4]} 5. e3 {[%clk 0:02:56.3]}
5... Be7 {[%clk 0:02:52.9]} 6. Bd3 {[%clk 0:02:56]} 6... O-O {[%clk 0:02:52.9]}
7. O-O {[%clk 0:02:56.1]} 7... dxc4 {[%clk 0:02:51.6]} 8. Bxc4 {[%clk
0:02:55.6]} 8... b5 {[%clk 0:02:51.4]} 9. Bd3 {[%clk 0:02:55.8]} 9... Bb7 {[%clk
0:02:51.5]} 10. e4 {[%clk 0:02:56.2]} 10... Nbd7 {[%clk 0:02:47.8]} 11. e5
{[%clk 0:02:55.9]} 11... Nd5 {[%clk 0:02:47.8]} 12. Ne4 {[%clk 0:02:56.1]} 12...
f5 {[%clk 0:02:45.3]} 13. exf6 {[%clk 0:02:55.2]} 13... N7xf6 {[%clk 0:02:45.1]}
14. Neg5 {[%clk 0:02:55.3]} 14... Qd6 {[%clk 0:02:41.4]} 15. Re1 {[%clk
0:02:55]} 15... Bc8 {[%clk 0:02:29.7]} 16. Qe2 {[%clk 0:02:51.4]} 16... Nf4
{[%clk 0:02:25.2]} 17. Bxf4 {[%clk 0:02:48.4]} 17... Qxf4 {[%clk 0:02:24.9]} 18.
Nxe6 {[%clk 0:02:48.9]} 18... Bxe6 {[%clk 0:02:24.7]} 19. Qxe6+ {[%clk
0:02:49.4]} 19... Rf7 {[%clk 0:02:16.8]} 20. Ne5 {[%clk 0:02:46.8]} 20... Rf8
{[%clk 0:02:11.3]} 21. Nxf7 {[%clk 0:02:41.1]} 21... Rxf7 {[%clk 0:02:11]} 22.
Qxc6 {[%clk 0:02:41.5]} 22... Ng4 {[%clk 0:02:06.7]} 23. Qe8+ {[%clk 0:01:43.4]}
23... Rf8 {[%clk 0:01:40.7]} 24. Rxe7 {[%clk 0:01:41.1]} 24... Qxh2+ {[%clk
0:01:30.1]} 25. Kf1 {[%clk 0:01:40.7]} 25... Rxe8 {[%clk 0:01:28.4]} 26. Rxe8+
{[%clk 0:01:37.5]} 26... Kf7 {[%clk 0:01:28.3]} 27. Ree1 {[%clk 0:01:34.6]}
27... Qf4 {[%clk 0:01:18.2]} 28. f3 {[%clk 0:01:24.1]} 28... Qxd4 {[%clk
0:01:13.8]} 29. fxg4 {[%clk 0:01:11.7]} 29... Qxd3+ {[%clk 0:01:13.8]} 30. Re2
{[%clk 0:01:10.4]} 30... Kg6 {[%clk 0:01:07.7]} 31. Kf2 {[%clk 0:01:07.4]} 31...
Qd4+ {[%clk 0:01:07.3]} 32. Kf3 {[%clk 0:01:00.3]} 32... Kg5 {[%clk 0:01:03]}
33. Rae1 {[%clk 0:00:57.2]} 33... Qxg4+ {[%clk 0:01:01.2]} 34. Kf2 {[%clk
0:00:57.3]} 34... Qd4+ {[%clk 0:01:00.6]} 35. Kf1 {[%clk 0:00:57.4]} 35... h5
{[%clk 0:00:48.7]} 36. b3 {[%clk 0:00:53.7]} 36... Kh6 {[%clk 0:00:41.3]} 37. g3
{[%clk 0:00:47.3]} 37... g6 {[%clk 0:00:33.7]} 38. Kg2 {[%clk 0:00:46.7]} 38...
a5 {[%clk 0:00:31.7]} 39. Re4 {[%clk 0:00:44]} 39... Qd3 {[%clk 0:00:29.7]} 40.
R1e3 {[%clk 0:00:42.4]} 40... Qd5 {[%clk 0:00:27.6]} 41. Kh2 {[%clk 0:00:41.2]}
41... a4 {[%clk 0:00:27.1]} 42. bxa4 {[%clk 0:00:39.9]} 42... Qxa2+ {[%clk
0:00:24.9]} 43. Re2 {[%clk 0:00:38.3]} 43... Qb3 {[%clk 0:00:19.9]} 44. axb5
{[%clk 0:00:32.1]} 44... Qxb5 {[%clk 0:00:19.7]} 45. Re6 {[%clk 0:00:31.1]}
45... Qf5 {[%clk 0:00:18.4]} 46. Kg2 {[%clk 0:00:30.2]} 46... Qd5+ {[%clk
0:00:17.8]} 47. Kg1 {[%clk 0:00:29.9]} 47... Kg7 {[%clk 0:00:14.4]} 48. Re7+
{[%clk 0:00:28.8]} 48... Kf6 {[%clk 0:00:13.8]} 49. R7e3 {[%clk 0:00:29.7]}
49... Qd4 {[%clk 0:00:13.3]} 50. Kh2 {[%clk 0:00:29.4]} 50... g5 {[%clk
0:00:12.7]} 51. Re8 {[%clk 0:00:27.5]} 51... Kf5 {[%clk 0:00:11]} 52. Rf8+
{[%clk 0:00:27.3]} 52... Kg4 {[%clk 0:00:10.5]} 53. Rfe8 {[%clk 0:00:26]} 53...
Kf5 {[%clk 0:00:10.4]} 54. R8e3 {[%clk 0:00:22.2]} 54... h4 {[%clk 0:00:09.1]}
55. Rf3+ {[%clk 0:00:21.5]} 55... Kg4 {[%clk 0:00:09.1]} 56. Rfe3 {[%clk
0:00:20.4]} 56... h3 {[%clk 0:00:07]} 57. Re4+ {[%clk 0:00:19]} 57... Qxe4
{[%clk 0:00:07.3]} 58. Rxe4+ {[%clk 0:00:19.7]} 58... Kf3 {[%clk 0:00:07.7]} 59.
Re1 {[%clk 0:00:20.3]} 59... g4 {[%clk 0:00:07.8]} 60. Ra1 {[%clk 0:00:20.9]}
60... Kf2 {[%clk 0:00:07.6]} 61. Ra4 {[%clk 0:00:21.5]} 61... Kf3 {[%clk
0:00:07.9]} 62. Rf4+ {[%clk 0:00:21.3]} 62... Ke3 {[%clk 0:00:08.3]} 63. Rxg4
{[%clk 0:00:21.9]} 1-0